fUSD/lending_fUSD_20260410
["ID","MTS","AMOUNT","RATE_DAILY","PERIOD"]
[420232814,1775831364240,177.0,7.282e-05,2]
[420232815,1775831365746,254.0,7.282e-05,2]
[420232816,1775831411082,162.0,0.00010845,2]
[420232817,1775831411328,897.0,0.00010845,2]
[420232818,1775831411381,162.0,0.00010845,2]
[420232819,1775831411600,897.0,0.00010845,2]
[420232820,1775831411868,897.0,0.00010845,2]
[420232821,1775831412270,897.0,0.00010845,2]
[420232822,1775831413019,897.0,0.00010845,2]
[420232834,1775831431862,-1558.47845465,0.00010855,2]
[420232836,1775831431879,-155.0,0.00010855,2]
[420232837,1775831431902,-483.96697237,0.00011155,3]
[420232838,1775831431915,-413.03302763,0.00011155,3]
[420232839,1775831431937,-2003.26428485,0.00011205,2]
[420232840,1775831431952,-280.72,0.00011205,2]
[420232841,1775831431966,-494.01571515,0.00011205,2]
[420232842,1775831431990,-1200.0,0.00011554,2]
[420232843,1775831432000,-2778.0,0.00011555,2]
[420232844,1775831432014,-1200.0,0.00011904,2]
[420232845,1775831432031,-600.0,0.00011904,7]
[420232846,1775831432041,-2778.0,0.00011905,2]
[420232847,1775831432055,-897.0,0.0001193,3]
[420232848,1775831432067,-4152.7093,0.00012091,2]
[420232849,1775831432076,-410.03891552,0.00012091,2]
[420232850,1775831432089,-507.104,0.00012091,2]
[420232851,1775831432109,-2088.41628585,0.00012091,2]
[420232852,1775831432122,-7120.53129863,0.00012091,2]
[420232853,1775831432134,-6431.0711,0.00012091,2]
[420232854,1775831432153,-302.13762215,0.00012156,2]
[420232855,1775831432163,-500.0,0.00012173,2]
[420232856,1775831432187,-16795.20680803,0.00012181,2]
[420232857,1775831432199,-151.0,0.00012184,2]
[420232858,1775831432214,-161.77898451,0.00012184,2]
[420232859,1775831432236,-200.0,0.00012184,2]
[420232860,1775831432252,-162.0,0.00012188,3]
[420232861,1775831432261,-500.0,0.0001219,2]
[420232862,1775831432298,-500.0,0.0001219,2]
[420232863,1775831432312,-500.0,0.0001219,2]
[420232864,1775831432342,-500.0,0.0001219,2]
[420232865,1775831432357,-500.0,0.0001219,2]
[420232866,1775831432375,-500.0,0.0001219,2]
[420232867,1775831432395,-210.98965108,0.0001219,2]
[420232868,1775831432408,-500.0,0.0001219,2]
[420232869,1775831432419,-500.0,0.0001219,2]
[420232870,1775831432436,-500.0,0.0001219,2]
[420232871,1775831432446,-500.0,0.0001219,2]
[420232872,1775831432462,-500.0,0.0001219,2]
[420232873,1775831432482,-500.0,0.0001219,2]
[420232874,1775831432504,-500.0,0.0001219,2]
[420232875,1775831432514,-500.0,0.0001219,2]
[420232876,1775831432532,-500.0,0.0001219,2]
[420232877,1775831432547,-500.0,0.0001219,2]
[420232878,1775831432561,-500.0,0.0001219,2]
[420232879,1775831432575,-500.0,0.0001219,2]
[420232880,1775831432598,-500.0,0.0001219,2]
[420232881,1775831432609,-500.0,0.0001219,2]
[420232882,1775831432660,-500.0,0.0001219,2]
[420232883,1775831432675,-300.0,0.0001219,2]
[420232884,1775831432689,-99.24402735,0.0001219,2]
[420232885,1775831432722,-400.75597265,0.0001219,2]
[420232886,1775831432738,-606.99622587,0.0001219,2]
[420232887,1775831432766,-185.57773063,0.0001219,2]
[420232888,1775831432793,-299.3299928,0.0001219,2]
[420232889,1775831432821,-26829.36180088,0.00012191,2]
[420232890,1775831432850,-12212.54101581,0.00012191,2]
[420232891,1775831433918,-610.44814184,0.00012191,2]
[420232892,1775831433941,-615.73022702,0.00012191,2]
[420232893,1775831433966,-1008.75000001,0.00012191,2]
[420232894,1775831434004,-299.23478,0.00012191,2]
[420232895,1775831434017,-756.35463349,0.00012191,2]
[420232896,1775831434038,-11931.14201349,0.00012191,2]
[420232897,1775831434060,-4451.41049392,0.00012191,2]
[420232898,1775831434071,-994.68708973,0.00012191,2]
[420232899,1775831434118,-6656.3528631,0.00012191,2]
[420232900,1775831434134,-1182.26134893,0.00012191,2]
[420232901,1775831434175,-10529.22888679,0.00012191,2]
[420232902,1775831434206,-94098.40610319,0.00012191,2]
[420232903,1775831434218,-11018.99544159,0.00012191,2]
[420232905,1775831434241,-28867.25336642,0.00012191,2]
[420232907,1775831434254,-36931.82768627,0.00012191,2]
[420232910,1775831434269,-1254.41808677,0.00012191,2]
[420232912,1775831434294,-850.09467,0.00012191,2]
[420232914,1775831434307,-713.12,0.00012191,2]
[420232916,1775831434319,-510.61,0.00012191,2]
[420232919,1775831434354,-388.019697,0.00012191,2]
[420232921,1775831434365,-1607.53216,0.00012191,2]
[420232923,1775831434383,-2892.35442139,0.00012191,2]
[420232928,1775831434423,-1293410.1406841,0.00012191,2]
[420232930,1775831434448,-200.0,0.0001221,3]
[420232932,1775831434459,-5709.23,0.00012219,2]
[420232934,1775831434469,-440.0,0.00012242,2]
[420232936,1775831434488,-2778.0,0.00012256,2]
[420232938,1775831434502,-179.0,0.00012267,2]
[420232940,1775831434512,-338.0,0.00012291,2]
[420232942,1775831434541,-176.53864852,0.00012414,2]
[420232944,1775831434551,-500.0,0.00012557,2]
[420232946,1775831434564,-2778.0,0.00012606,2]
[420232948,1775831434587,-302.13762211,0.00012691,2]
[420232950,1775831434597,-897.0,0.00012704,3]
[420232952,1775831434611,-1680.0,0.0001271,2]
[420232954,1775831434635,-1038.0,0.00012828,2]
[420232956,1775831434645,-1082.0,0.00012853,2]
[420232958,1775831434660,-263.0,0.00012879,2]
[420232960,1775831434690,-29999.99,0.00012893,2]
[420232962,1775831434702,-500.0,0.00012904,2]
[420232964,1775831434712,-3356.1245,0.00012915,2]
[420232966,1775831434730,-2778.0,0.00012956,2]
[420232968,1775831434741,-150.0,0.00013,2]
[420232970,1775831434753,-250.0,0.00013,2]
[420232972,1775831434763,-500.0,0.00013053,2]
[420232974,1775831434782,-2708.77781884,0.00013065,2]
[420232976,1775831434795,-930.3,0.0001309,2]
[420232978,1775831434814,-1301.0,0.00013094,2]
[420232980,1775831434826,-506.0,0.000131,2]
[420232982,1775831434842,-2056.12,0.00013168,2]
[420232984,1775831434855,-180.48,0.00013177,2]
[420232986,1775831434881,-1274.76,0.000132,2]
[420232988,1775831434905,-302.13762211,0.00013226,2]
[420232990,1775831434917,-2778.0,0.00013306,2]
[420232992,1775831434954,-3106.81,0.00013345,2]
[420232993,1775831434967,-1744.0,0.00013375,2]
[420232995,1775831434988,-515.0,0.00013401,2]
[420232997,1775831434998,-897.0,0.00013479,3]
[420233000,1775831435017,-1355.1,0.00013546,2]
[420233002,1775831435042,-215.52117882,0.00013699,2]
[420233004,1775831435056,-13507.17638461,0.00013733,2]
[420233006,1775831435071,-8673.4764943,0.00013734,2]
[420233008,1775831435091,-302.13762211,0.00013761,2]
[420233010,1775831435103,-2351.0,0.00013981,2]
[420233012,1775831435116,-722.73143556,0.00014055,2]
[420233014,1775831435129,-1935.3141992,0.00014079,2]
[420233016,1775831435141,-1200.0,0.00014082,2]
[420233018,1775831435152,-2500.0,0.00014082,2]
[420233020,1775831435173,-167.76,0.000141,2]
[420233022,1775831435183,-1118.7081,0.00014145,2]
[420233051,1775831435618,-582.38952762,0.00014148,2]
[420233053,1775831435635,-176.5386485,0.00014157,2]
[420233055,1775831435650,-897.0,0.00014254,3]
[420233057,1775831435663,-302.13762211,0.00014295,2]
[420233059,1775831435672,-174.4292,0.000143,2]
[420233061,1775831435686,-162.0,0.00014641,3]
[420233063,1775831435699,-57317.20213871,0.00014681,2]
[420233065,1775831435711,-302.13762211,0.0001483,2]
[420233067,1775831435723,-300.0,0.00015,2]
[420233069,1775831435733,-897.0,0.00015028,3]
[420233071,1775831435746,-168.0,0.00015062,2]
[420233072,1775831435774,-500.0,0.00015096,2]
[420233075,1775831435785,-506.0,0.00015191,3]
[420233077,1775831435801,-930.3,0.00015253,2]
[420233079,1775831435824,-2471.0,0.00015311,2]
[420233081,1775831435837,-280.0474868,0.0001532,2]
[420233082,1775831435847,-766.0,0.00015352,2]
[420233085,1775831435866,-302.13762211,0.00015365,2]
[420233087,1775831435901,-3292.0,0.00015379,2]
[420233088,1775831435911,-1200.0,0.00015452,2]
[420233089,1775831435928,-2500.0,0.00015452,2]
[420233090,1775831435952,-202.8371,0.000155,2]
[420233091,1775831435963,-7592.6094812,0.000155,7]
[420233092,1775831435974,-168.0,0.00015535,2]
[420233093,1775831435997,-1071.51318542,0.0001568,7]
[420233094,1775831436010,-160.0,0.0001568,7]
[420233095,1775831436023,-162.807528,0.0001568,7]
[420233096,1775831436049,-165.615056,0.0001568,7]
[420233097,1775831436061,-350.0,0.00015753,2]
[420233098,1775831436071,-150.0,0.00015792,2]
[420233100,1775831436086,-897.0,0.00015803,3]
[420233102,1775831436101,-180.48,0.00015813,2]
[420233103,1775831436111,-168.0,0.00015819,2]
[420233105,1775831436121,-500.0,0.00015873,2]
[420233107,1775831436152,-500.54897623,0.00015873,2]
[420233109,1775831436163,-500.0,0.00015873,2]
[420233111,1775831436204,-500.0,0.00015873,2]
[420233112,1775831436222,-190.0504191,0.00015873,2]
[420233114,1775831436243,-500.0,0.00015873,2]
[420233116,1775831436255,-500.0,0.00015873,2]
[420233117,1775831436277,-500.0,0.00015873,2]
[420233119,1775831436294,-500.0,0.00015873,2]
[420233121,1775831436316,-500.0,0.00015873,2]
[420233123,1775831436330,-500.0,0.00015873,2]
[420233125,1775831436339,-500.0,0.00015873,2]
[420233126,1775831436355,-164.2293,0.0001588,2]
[420233128,1775831436365,-151.0,0.00015897,2]
[420233130,1775831436378,-13500.87054736,0.000159,2]
[420233133,1775831436397,-7859.84457289,0.000159,2]
[420233134,1775831436420,-23294.35703096,0.000159,2]
[420233135,1775831436436,-702.36606411,0.000159,2]
[420233136,1775831436448,-659.1457183,0.000159,2]
[420233137,1775831436470,-952.0,0.000159,2]
[420233138,1775831436497,-298.0784727,0.000159,2]
[420233139,1775831436509,-7024.44945277,0.000159,2]
[420233140,1775831436552,-14351.92869209,0.000159,2]
[420233141,1775831436565,-382.82685681,0.000159,2]
[420233142,1775831436582,-62119.4032903,0.000159,2]
[420233143,1775831436601,-987.95536,0.000159,2]
[420233144,1775831436614,-869.66570832,0.000159,2]
[420233145,1775831436628,-1910.49157789,0.000159,2]
[420233146,1775831436648,-454.4361659,0.000159,2]
[420233147,1775831436660,-4600.74438523,0.000159,2]
[420233148,1775831436674,-2033.32099426,0.000159,2]
[420233149,1775831436694,-644.71052742,0.000159,2]
[420233159,1775831438118,-216.00508003,0.00012135,2]
[420233160,1775831438130,-176504.63188269,0.000159,2]
[420233161,1775831438157,-33041.7805,0.000159,2]
[420233162,1775831438167,-2182.73,0.000159,2]
[420233163,1775831438185,-551.08,0.000159,2]
[420233164,1775831438200,-150.07717281,0.000159,2]
[420233165,1775831438213,-176.5386485,0.000159,2]
[420233166,1775831438235,-302.13762211,0.000159,2]
[420233167,1775831438246,-10626.25707869,0.000159,2]
[420233168,1775831438258,-308.0,0.000159,2]
[420233169,1775831438271,-1739.7594431,0.00015971,2]
[420233170,1775831438286,-500.0,0.00015973,2]
[420233171,1775831438311,-500.0,0.00015973,2]
[420233172,1775831438321,-500.0,0.00015973,2]
[420233173,1775831438331,-349.56796848,0.00015973,2]
[420233174,1775831438356,-138482.7998529,0.00016,2]
[420233175,1775831438369,-1128.37587025,0.00016,2]
[420233176,1775831438411,-36666.0,0.00016,2]
[420233177,1775831438439,-1343.44849106,0.00016,2]
[420233178,1775831438455,-828.73,0.00016,2]
[420233179,1775831438527,-1131.27780461,0.00016,2]
[420233180,1775831438587,-187742.95869566,0.00016,2]
[420233181,1775831438607,-3800.55334224,0.00016,2]
[420233182,1775831438649,-11193.98425145,0.00016,2]
[420233183,1775831438664,-606.81999954,0.00016,2]
[420233184,1775831438700,-1499.81990079,0.00016,2]
[420233311,1775831440574,-1239.07397694,0.00016,2]
[420233315,1775831440613,-105207.19967994,0.00016,2]
[420233394,1775831442009,-1680.75653448,0.00016,2]
[420233396,1775831442020,-36132.87203757,0.00016,2]
[420233399,1775831442049,-2077.0,0.00016,2]
[420233474,1775831443050,-573.62550278,0.00015311,2]
[420233477,1775831443097,-499.82095449,0.00015311,2]
[420233480,1775831443131,-273.55354273,0.00015311,2]
[420233482,1775831443152,-151.0,0.00015441,2]
[420233484,1775831443162,-205031.21236868,0.00016,2]
[420233621,1775831445239,-1036.64667494,0.00016,2]
[420233623,1775831445261,-324.61726525,0.00016,2]
[420233626,1775831445302,-1867.03752048,0.00016,2]
[420233628,1775831445333,-1500.45805787,0.00016,2]
[420233631,1775831445369,-8695.12852705,0.00016,2]
[420233634,1775831445387,-9653.56966632,0.00016,2]
[420233675,1775831445845,-1173.35043137,0.00016,2]
[420233677,1775831445862,-6121.31956118,0.00016,2]
[420233683,1775831445948,-1563.0,0.00016,2]
[420233687,1775831445974,-4917.78892402,0.00016,2]
[420233692,1775831446040,-1411.02022778,0.00016,2]
[420233702,1775831446196,-295001.28935347,0.00016,2]
[420233705,1775831446210,-189539.94567809,0.00016,2]
[420233708,1775831446260,-142266.395,0.00016,2]
[420233730,1775831446563,-279.7125,0.00016,2]
[420233732,1775831446580,-5885.0831862,0.00016,2]
[420233734,1775831446605,-72933.97240601,0.00016,2]
[420233754,1775831605707,150.0,0.00016,120]
[420233755,1775831738215,300.0,0.00012,2]
[420233756,1775831792910,150.0,0.00016,120]
[420233757,1775831883263,535.05754965,0.00011991,2]
[420233759,1775831979355,164.33,0.00016,120]
[420233761,1775832013323,182.8797037,0.00012081,2]
[420233766,1775832088596,2245.576,0.00011849,2]
[420233767,1775832088707,158.553,0.00011849,2]
[420233769,1775832152088,184.9712397,0.00011991,2]
[420233770,1775832201998,151.13035399,0.00011991,2]
[420233771,1775832222144,4151.9571,0.00011991,2]
[420233772,1775832228328,5848.0529,0.00011991,2]
[420233773,1775832228363,7100.2145,0.00011991,2]
[420233783,1775832431249,-184.02,0.00011617,7]
[420233784,1775832431301,-368.05,0.00011617,7]
[420233785,1775832431361,-510.47777852,0.00011991,2]
[420233786,1775832431419,-184.9712397,0.00011991,2]
[420233787,1775832431463,-10801.34839701,0.00011991,30]
[420233788,1775832431516,-272.0,0.00011991,2]
[420233789,1775832431557,-150.0,0.00012,2]
[420233790,1775832431600,-1200.0,0.00012088,2]
[420233791,1775832431646,-10801.34839701,0.00012088,30]
[420233792,1775832431698,-1200.0,0.00012089,2]
[420233793,1775832431741,-300.0,0.00012089,2]
[420233794,1775832431797,-300.0,0.00012089,2]
[420233795,1775832431837,-8222.42010097,0.00012089,30]
[420233797,1775832453108,-2578.92829604,0.00012089,30]
[420233798,1775832453137,-500.0,0.0001209,2]
[420233799,1775832453172,-361.41191825,0.0001209,2]
[420233800,1775832453200,-274.8973581,0.0001209,2]
[420233801,1775832453231,-500.0,0.0001209,2]
[420233802,1775832453280,-209.53099496,0.0001209,2]
[420233803,1775832453307,-150.0,0.0001209,2]
[420233804,1775832453358,-150.0,0.0001209,2]
[420233805,1775832453401,-150.0,0.0001209,2]
[420233806,1775832453457,-10801.34839701,0.0001209,30]
[420233807,1775832453493,-150.0,0.0001209,2]
[420233808,1775832453529,-33523.21346332,0.00012091,2]
[420233830,1775832632097,-182.0,0.0001199,2]
[420233831,1775832632107,-365.29637266,0.0001199,2]
[420233832,1775832632318,-834.70362734,0.0001199,2]
[420233833,1775832632331,-19555.7898,0.00011991,2]
[420233834,1775832632349,-184.9712397,0.00011991,2]
[420233835,1775832632362,-291.94327719,0.00011991,2]
[420233836,1775832632375,-2160.2696794,0.0001209,30]
[420233837,1775832632387,-285.5847,0.00012091,2]
[420233839,1775832632407,-21775.46922112,0.00012091,2]
[420233841,1775832632424,-7306.88888386,0.00012091,2]
[420233843,1775832632444,-506.276,0.00012091,2]
[420233846,1775832632458,-24463.64122119,0.00012091,2]
[420233847,1775832632471,-4316.76444638,0.00012091,2]
[420233848,1775832632486,-1053.71656762,0.00012091,2]
[420233849,1775832632507,-1407.06176575,0.00012091,2]
[420233850,1775832632522,-96709.32016073,0.00012091,2]
[420233851,1775832632552,-66464.9102927,0.00012091,2]
[420233852,1775832632586,-32715.07318967,0.00012091,2]
[420233861,1775832638489,-303.1425,0.00011891,2]
[420233862,1775832638516,-16.42328962,0.00012091,2]
[420233863,1775832638546,-500.0,0.00012091,2]
[420233864,1775832638563,-404.71645379,0.00012091,2]
[420233865,1775832638613,-794.364115,0.00012091,2]
[420233990,1775832640403,-776.90309751,0.00012091,2]
[420233998,1775832640504,-1196.45080409,0.00012091,2]
[420234001,1775832640521,-5194.36297898,0.00012091,2]
[420234055,1775832641091,-147180.09382579,0.00012091,2]
[420234058,1775832641105,-72700.99999999,0.00012091,2]
[420234060,1775832641119,-11469.18117054,0.00012091,2]
[420234156,1775832646095,-253.03429007,0.00012091,2]
[420234157,1775832646156,-8331.76961779,0.00012091,2]
[420234158,1775832646171,-1006.2589854,0.00012091,2]
[420234159,1775832646349,-25100.01404892,0.00012091,2]
[420234232,1775832651221,-173734.62023489,0.00012091,2]
[420234233,1775832651236,-10955.73962263,0.00012091,2]
[420234234,1775832699179,-457.8361,0.00011991,2]
[420234235,1775832699223,-1924.0681206,0.00012091,30]
[420234236,1775832699387,-236.2015588,0.00012091,30]
[420234237,1775832699439,-1296.16180764,0.00012091,30]
[420234238,1775832699501,-639.12145948,0.00012091,30]
[420234239,1775832699685,-657.04034816,0.00012091,30]
[420234240,1775832699732,-164.0,0.00012091,3]
[420234241,1775832699819,-376.0,0.00012091,3]
[420234242,1775832699887,-184.02,0.00012095,7]
[420234243,1775832699964,-941.72749604,0.00012095,30]
[420234244,1775832702075,-354.4343116,0.00012095,30]
[420234245,1775832702128,-1296.16180764,0.00012193,30]
[420234246,1775832702174,-182.8797037,0.00012193,2]
[420234247,1775832731080,381.073,0.00010491,2]
[420234248,1775832791631,359.0,0.00010491,2]
[420234249,1775832798157,216.0,0.00010491,2]
[420234250,1775832800822,908.39,0.000161,120]
[420234251,1775833051612,-300.0,0.00011525,2]
[420234252,1775833051691,-9700.0,0.00011526,2]
[420234253,1775833064493,-300.01,0.00011526,2]
[420234254,1775833064518,-4214.3877,0.00011584,2]
[420234255,1775833064551,-300.0,0.00011643,2]
[420234256,1775833064580,-1200.0,0.00011643,2]
[420234257,1775833064609,-444.10537432,0.00011891,2]
[420234258,1775833064636,-184.9712397,0.00011891,2]
[420234259,1775833064659,-294.30402622,0.00011988,2]
[420234260,1775833064690,-500.0,0.0001199,2]
[420234261,1775833064720,-525.69684124,0.0001199,2]
[420234262,1775833064759,-500.0,0.0001199,2]
[420234263,1775833064796,-209.50806461,0.0001199,2]
[420234264,1775833064847,-500.0,0.0001199,2]
[420234265,1775833064890,-445.66551679,0.0001199,2]
[420234266,1775833064931,-381.35123712,0.0001199,2]
[420234267,1775833079850,-118.64876288,0.0001199,2]
[420234268,1775833079878,-472.51522809,0.0001199,2]
[420234269,1775833079913,-282.084564,0.0001199,2]
[420234270,1775833079939,-500.0,0.0001199,2]
[420234271,1775833079976,-8626.75144503,0.00011991,2]
[420234272,1775833123214,577.28550697,8e-05,2]
[420234277,1775833541035,151.71,5.729e-05,2]
[420234278,1775833541124,151.71,6.087e-05,2]
[420234279,1775833541173,151.71,6.445e-05,2]
[420234280,1775833541553,151.71,6.803e-05,2]
[420234281,1775833541798,151.71,7.161e-05,2]
[420234282,1775833541995,151.71,7.519e-05,2]
[420234283,1775833542204,151.71,7.877e-05,2]
[420234284,1775833542415,151.71,8.235e-05,2]
[420234285,1775833542628,151.71,8.593e-05,2]
[420234286,1775833542902,151.71,8.952e-05,2]
[420234287,1775833543311,151.71,9.31e-05,2]
[420234288,1775833543592,151.71,9.668e-05,2]
[420234289,1775833543927,151.71,0.00010026,2]
[420234290,1775833544143,151.71,0.00010384,2]
[420234291,1775833667807,5000.01,0.00010491,2]
[420234292,1775833667857,4999.99,0.00010491,2]
[420234293,1775833832291,-753.07092822,0.00010698,2]
[420234294,1775833832412,-446.92907178,0.00010698,2]
[420234295,1775833832436,-272.0,0.00010698,2]
[420234296,1775833832464,-300.0,0.00010698,2]
[420234297,1775833832476,-300.0,0.00010698,2]
[420234298,1775833832495,-300.0,0.00010698,2]
[420234299,1775833832508,-176.40422822,0.00010698,2]
[420234300,1775833832533,-265.84703492,0.00010698,2]
[420234301,1775833832546,-757.74873686,0.00010698,2]
[420234302,1775833832572,-1694.18504249,0.00010699,30]
[420234304,1775833832697,-325.88726387,0.00010699,30]
[420234305,1775833832717,-4377.00500852,0.00010699,30]
[420234306,1775833832731,-18924.15499212,0.000107,2]
[420234307,1775833832765,-6397.07731488,0.000107,30]
[420234308,1775833832775,-151.71,0.00010742,2]
[420234309,1775833832802,-6397.07731488,0.00010742,30]
[420234310,1775833832812,-151.71,0.000111,2]
[420234311,1775833832864,-6397.07731488,0.000111,30]
[420234312,1775833832893,-150.0,0.000113,2]
[420234313,1775833832902,-249.68,0.00011397,7]
[420234314,1775833832921,-151.71,0.00011458,2]
[420234315,1775833832933,-159.0,0.00011627,2]
[420234316,1775833832942,-327.0,0.0001165,2]
[420234317,1775833832954,-477.0,0.00011714,2]
[420234318,1775833832978,-252.0,0.00011738,2]
[420234319,1775833832988,-1888.0,0.00011741,2]
[420234320,1775833833005,-1796.461,0.00011751,2]
[420234321,1775833833032,-158.553,0.00011751,2]
[420234322,1775833833045,-407.0,0.0001176,2]
[420234323,1775833833061,-176.0,0.00011761,2]
[420234324,1775833833074,-774.0,0.00011765,2]
[420234325,1775833833088,-1680.0,0.00011768,2]
[420234326,1775833833098,-272.0,0.00011785,2]
[420234327,1775833833112,-174.0,0.00011808,2]
[420234328,1775833833122,-285.5847,0.00011891,2]
[420234329,1775833833136,-46855.7933,0.00011891,2]
[420234330,1775833833151,-692.4255634,0.00011891,2]
[420234331,1775833833160,-428.88916458,0.00011891,2]
[420234332,1775833833180,-196.20268414,0.00011891,2]
[420234333,1775833833194,-182.8797037,0.00011981,2]
[420234334,1775833833204,-500.0,0.0001199,2]
[420234335,1775833833221,-500.0,0.0001199,2]
[420234336,1775833833235,-500.0,0.0001199,2]
[420234337,1775833833250,-500.0,0.0001199,2]
[420234338,1775833833265,-200.0,0.0001199,2]
[420234339,1775833833278,-500.0,0.0001199,2]
[420234340,1775833833287,-500.0,0.0001199,2]
[420234341,1775833833306,-500.0,0.0001199,2]
[420234342,1775833833330,-181.0439714,0.0001199,2]
[420234343,1775833833347,-500.0,0.0001199,2]
[420234344,1775833833360,-500.0,0.0001199,2]
[420234345,1775833833374,-500.0,0.0001199,2]
[420234346,1775833833391,-479.496359,0.0001199,2]
[420234347,1775833833405,-300.0,0.0001199,2]
[420234348,1775833833416,-281.39482055,0.0001199,2]
[420234349,1775833833426,-500.0,0.0001199,2]
[420234350,1775833833442,-500.0,0.0001199,2]
[420234351,1775833833451,-500.0,0.0001199,2]
[420234352,1775833833464,-500.0,0.0001199,2]
[420234353,1775833833478,-500.0,0.0001199,2]
[420234354,1775833833494,-500.0,0.0001199,2]
[420234355,1775833833503,-500.0,0.0001199,2]
[420234356,1775833833516,-500.0,0.0001199,2]
[420234357,1775833833525,-500.0,0.0001199,2]
[420234358,1775833833538,-500.0,0.0001199,2]
[420234359,1775833833554,-500.0,0.0001199,2]
[420234360,1775833833571,-500.0,0.0001199,2]
[420234361,1775833833580,-500.0,0.0001199,2]
[420234362,1775833833595,-500.0,0.0001199,2]
[420234363,1775833833615,-350.0,0.0001199,2]
[420234364,1775833833626,-500.0,0.0001199,2]
[420234365,1775833833647,-500.0,0.0001199,2]
[420234366,1775833833656,-500.0,0.0001199,2]
[420234367,1775833833667,-500.0,0.0001199,2]
[420234368,1775833833686,-281.41938346,0.0001199,2]
[420234369,1775833833695,-500.0,0.0001199,2]
[420234370,1775833833705,-398.93763217,0.0001199,2]
[420234371,1775833833748,-500.0,0.0001199,2]
[420234372,1775833833765,-500.0,0.0001199,2]
[420234373,1775833833782,-500.0,0.0001199,2]
[420234374,1775833833802,-500.0,0.0001199,2]
[420234375,1775833833812,-500.0,0.0001199,2]
[420234376,1775833833821,-500.0,0.0001199,2]
[420234377,1775833833841,-634.53336441,0.0001199,2]
[420234378,1775833833850,-500.0,0.0001199,2]
[420234379,1775833833861,-500.0,0.0001199,2]
[420234380,1775833833874,-500.0,0.0001199,2]
[420234381,1775833833883,-500.0,0.0001199,2]
[420234382,1775833833894,-500.0,0.0001199,2]
[420234383,1775833833907,-500.0,0.0001199,2]
[420234384,1775833833917,-500.0,0.0001199,2]
[420234385,1775833833927,-500.0,0.0001199,2]
[420234386,1775833833941,-500.0,0.0001199,2]
[420234387,1775833833957,-500.0,0.0001199,2]
[420234388,1775833833967,-223540.61215363,0.00011991,2]
[420234389,1775833833996,-5050.9751162,0.00011991,2]
[420234390,1775833834023,-69142.98890847,0.00011991,2]
[420234391,1775833834043,-52313.81890321,0.00011991,2]
[420234392,1775833834086,-816.77242423,0.00011991,2]
[420234393,1775833834098,-660.3,0.00011991,2]
[420234394,1775833834118,-711.11,0.00011991,2]
[420234400,1775833838479,-396.42274978,0.00011991,2]
[420234401,1775833838629,-252.9257169,0.00011991,2]
[420234402,1775833838673,-70999.99999995,0.00011991,2]
[420234403,1775833838686,-580.29201335,0.00011991,2]
[420234411,1775833840557,-1722.85209574,0.00011991,2]
[420234413,1775833840579,-1624.43559692,0.00011991,2]
[420234415,1775833840591,-2857.63393423,0.00011991,2]
[420234416,1775833840628,-380.24418438,0.00011991,2]
[420234417,1775833840737,-2016.77102628,0.00011991,2]
[420234418,1775833841056,-212.87810549,0.00011991,2]
[420234420,1775833841091,-1088.09415847,0.00011991,2]
[420234423,1775833841117,-6859.99277437,0.00011991,2]
[420234429,1775833841202,-1050135.72049337,0.00011991,2]
[420234432,1775833841213,-2095809.57392012,0.00011991,2]
[420234546,1775833843454,-10560.53160195,0.00011991,2]
[420234548,1775833843476,-11202.04278819,0.00011991,2]
[420234550,1775833843505,-775.00094859,0.00011991,2]
[420234552,1775833843556,-16458.37816726,0.00011991,2]